[Event "Titled Tuesday Blitz January 03 Late 2023"]
[White "Avila Pavas, Santiago"]
[Black "Yaran, Siar"]
[WhiteFideId "4437128"]
[BlackFideId "6323006"]
[WhiteElo "2522"]
[BlackElo "2288"]
[Result "0-1"]
[Round "10"]
[TimeControl "180+2"]
[Date "2023.01.03"]
[WhiteClock "0:01:04"]
[BlackClock "0:00:10"]

1. d4 {[%clk 0:03:00]}  Nf6 {[%clk 0:02:59]} 2. Nf3 {[%clk 0:03:00]}  e6 {[%clk 0:02:57]} 3. Bf4 {[%clk 0:03:01]}  d5 {[%clk 0:02:58]} 4. e3 {[%clk 0:02:59]}  Bd6 {[%clk 0:02:56]} 5. Bg3 {[%clk 0:03:00]}  O-O {[%clk 0:02:55]} 6. Nbd2 {[%clk 0:03:00]}  c5 {[%clk 0:02:56]} 7. c3 {[%clk 0:03:00]}  Qc7 {[%clk 0:02:56]} 8. Bd3 {[%clk 0:03:00]}  Nbd7 {[%clk 0:02:52]} 9. e4 {[%clk 0:03:01]}  e5 {[%clk 0:02:40]} 10. dxe5 {[%clk 0:02:48]}  Nxe5 {[%clk 0:02:34]} 11. Nxe5 {[%clk 0:02:49]}  Bxe5 {[%clk 0:02:34]} 12. exd5 {[%clk 0:02:50]}  Bg4 {[%clk 0:02:12]} 13. Qc2 {[%clk 0:02:46]}  Bxg3 {[%clk 0:02:03]} 14. hxg3 {[%clk 0:02:46]}  Rfe8+ {[%clk 0:02:02]} 15. Kf1 {[%clk 0:02:47]}  h6 {[%clk 0:02:02]} 16. c4 {[%clk 0:02:42]}  b5 {[%clk 0:01:52]} 17. Nf3 {[%clk 0:02:34]}  bxc4 {[%clk 0:01:48]} 18. Bxc4 {[%clk 0:02:34]}  Re4 {[%clk 0:01:19]} 19. Rd1 {[%clk 0:02:23]}  Qd6 {[%clk 0:01:17]} 20. Rh4 {[%clk 0:02:23]}  Bxf3 {[%clk 0:00:58]} 21. gxf3 {[%clk 0:02:23]}  Rxh4 {[%clk 0:00:59]} 22. gxh4 {[%clk 0:02:20]}  Qh2 {[%clk 0:00:59]} 23. Ke2 {[%clk 0:02:12]}  Re8+ {[%clk 0:00:55]} 24. Kd2 {[%clk 0:02:11]}  Qf4+ {[%clk 0:00:53]} 25. Kc3 {[%clk 0:02:11]}  Qxf3+ {[%clk 0:00:44]} 26. Rd3 {[%clk 0:02:11]}  Ne4+ {[%clk 0:00:39]} 27. Kb3 {[%clk 0:02:12]}  Rb8+ {[%clk 0:00:37]} 28. Ka3 {[%clk 0:02:12]}  Qf6 {[%clk 0:00:31]} 29. b3 {[%clk 0:01:53]}  g6 {[%clk 0:00:21]} 30. d6 {[%clk 0:01:43]}  Nxd6 {[%clk 0:00:20]} 31. Ba6 {[%clk 0:01:32]}  Rb6 {[%clk 0:00:18]} 32. Qxc5 {[%clk 0:01:15]}  Rxa6+ {[%clk 0:00:18]} 33. Kb4 {[%clk 0:01:16]}  Rb6+ {[%clk 0:00:17]} 34. Ka4 {[%clk 0:01:13]}  Ra6+ {[%clk 0:00:15]} 35. Kb4 {[%clk 0:01:13]}  Rb6+ {[%clk 0:00:14]} 36. Ka4 {[%clk 0:01:13]}  Kg7 {[%clk 0:00:14]} 37. b4 {[%clk 0:01:11]}  Qe6 {[%clk 0:00:13]} 38. Qd4+ {[%clk 0:01:09]}  Kh7 {[%clk 0:00:13]} 39. b5 {[%clk 0:01:07]}  Nxb5 {[%clk 0:00:11]} 40. Qb4 {[%clk 0:01:04]}  Qxa2+ {[%clk 0:00:10]} 0-1


[Site "https://www.chess.com"]

[Event "Titled Tuesday Blitz January 03 Late 2023"]
[White "Rangel, Daniel"]
[Black "Fernandez Guillen, Ernesto J."]
[WhiteFideId "2124475"]
[BlackFideId "3512428"]
[WhiteElo "2207"]
[BlackElo "2477"]
[Result "0-1"]
[Round "10"]
[TimeControl "180+2"]
[Date "2023.01.03"]
[WhiteClock "0:00:32"]
[BlackClock "0:01:57"]

1. c4 {[%clk 0:03:00]}  Nf6 {[%clk 0:02:45]} 2. g3 {[%clk 0:02:59]}  g6 {[%clk 0:02:42]} 3. Bg2 {[%clk 0:03:00]}  Bg7 {[%clk 0:02:43]} 4. Nc3 {[%clk 0:02:59]}  O-O {[%clk 0:02:43]} 5. e3 {[%clk 0:02:58]}  d6 {[%clk 0:02:42]} 6. Nge2 {[%clk 0:02:58]}  Nc6 {[%clk 0:02:42]} 7. O-O {[%clk 0:02:59]}  e5 {[%clk 0:02:43]} 8. Rb1 {[%clk 0:02:59]}  h5 {[%clk 0:02:42]} 9. h4 {[%clk 0:02:58]}  Bf5 {[%clk 0:02:42]} 10. d3 {[%clk 0:02:57]}  Qd7 {[%clk 0:02:41]} 11. Nd5 {[%clk 0:02:53]}  Nxd5 {[%clk 0:02:40]} 12. cxd5 {[%clk 0:02:54]}  Ne7 {[%clk 0:02:40]} 13. e4 {[%clk 0:02:55]}  Bh3 {[%clk 0:02:40]} 14. Bg5 {[%clk 0:02:46]}  Bxg2 {[%clk 0:02:39]} 15. Kxg2 {[%clk 0:02:45]}  f6 {[%clk 0:02:39]} 16. Be3 {[%clk 0:02:45]}  c6 {[%clk 0:02:40]} 17. dxc6 {[%clk 0:02:42]}  bxc6 {[%clk 0:02:41]} 18. d4 {[%clk 0:02:39]}  d5 {[%clk 0:02:35]} 19. dxe5 {[%clk 0:02:37]}  fxe5 {[%clk 0:02:35]} 20. Bg5 {[%clk 0:02:20]}  Rad8 {[%clk 0:02:32]} 21. Nc3 {[%clk 0:02:05]}  Bf6 {[%clk 0:02:32]} 22. Bxf6 {[%clk 0:02:05]}  Rxf6 {[%clk 0:02:33]} 23. Qd2 {[%clk 0:02:01]}  Kg7 {[%clk 0:02:31]} 24. Rbd1 {[%clk 0:01:57]}  d4 {[%clk 0:02:31]} 25. Na4 {[%clk 0:01:54]}  Rdf8 {[%clk 0:02:30]} 26. Nc5 {[%clk 0:01:53]}  Qg4 {[%clk 0:02:30]} 27. b4 {[%clk 0:01:36]}  Nc8 {[%clk 0:02:20]} 28. Rde1 {[%clk 0:01:34]}  Nd6 {[%clk 0:02:18]} 29. Qe2 {[%clk 0:01:33]}  Rf3 {[%clk 0:02:07]} 30. a4 {[%clk 0:01:27]}  g5 {[%clk 0:02:07]} 31. Rh1 {[%clk 0:01:08]}  Nc4 {[%clk 0:01:59]} 32. hxg5 {[%clk 0:00:31]}  Ne3+ {[%clk 0:01:57]} 33. Kg1 {[%clk 0:00:32]}  Rxg3+ {[%clk 0:01:56]} 34. fxg3 {[%clk 0:00:32]}  Qxg3+ {[%clk 0:01:57]} 35. Qg2 {[%clk 0:00:32]}  Qxg2# {[%clk 0:01:57]} 0-1


[Site "https://www.chess.com"]

[Event "Titled Tuesday Blitz January 03 Late 2023"]
[White "Zhigalko, Sergei"]
[Black "Papp, Levente"]
[WhiteFideId "13502956"]
[BlackFideId "751243"]
[WhiteElo "2572"]
[BlackElo "2353"]
[Result "1-0"]
[Round "10"]
[TimeControl "180+2"]
[Date "2023.01.03"]
[WhiteClock "0:01:58"]
[BlackClock "0:00:04"]

1. e4 {[%clk 0:03:00]}  e6 {[%clk 0:02:57]} 2. d4 {[%clk 0:03:01]}  d5 {[%clk 0:02:58]} 3. e5 {[%clk 0:03:01]}  c5 {[%clk 0:02:56]} 4. c3 {[%clk 0:03:02]}  Nc6 {[%clk 0:02:56]} 5. Nf3 {[%clk 0:03:03]}  Qb6 {[%clk 0:02:55]} 6. Bd3 {[%clk 0:03:03]}  cxd4 {[%clk 0:02:55]} 7. O-O {[%clk 0:03:03]}  Bd7 {[%clk 0:02:55]} 8. Re1 {[%clk 0:03:02]}  Nge7 {[%clk 0:02:54]} 9. h4 {[%clk 0:03:02]}  dxc3 {[%clk 0:02:47]} 10. Nxc3 {[%clk 0:03:02]}  Qd8 {[%clk 0:02:44]} 11. Bg5 {[%clk 0:02:57]}  h6 {[%clk 0:02:42]} 12. Nb5 {[%clk 0:02:57]}  Bc8 {[%clk 0:02:24]} 13. Nd6+ {[%clk 0:02:56]}  Kd7 {[%clk 0:02:25]} 14. Nxf7 {[%clk 0:02:48]}  Qe8 {[%clk 0:02:24]} 15. Nxh8 {[%clk 0:02:38]}  hxg5 {[%clk 0:02:19]} 16. Nxg5 {[%clk 0:02:39]}  Kc7 {[%clk 0:01:25]} 17. Nhf7 {[%clk 0:02:37]}  Ng8 {[%clk 0:00:52]} 18. Rc1 {[%clk 0:02:33]}  Bd7 {[%clk 0:00:42]} 19. a3 {[%clk 0:02:08]}  a6 {[%clk 0:00:38]} 20. b4 {[%clk 0:02:08]}  Nh6 {[%clk 0:00:28]} 21. Bg6 {[%clk 0:01:57]}  Nxf7 {[%clk 0:00:18]} 22. Bxf7 {[%clk 0:01:58]}  Qe7 {[%clk 0:00:18]} 23. Qg4 {[%clk 0:01:59]}  Kb6 {[%clk 0:00:05]} 24. Bxe6 {[%clk 0:01:58]}  d4 {[%clk 0:00:04]} 25. Bxd7 {[%clk 0:01:58]} 1-0


[Site "https://www.chess.com"]

[Event "Titled Tuesday Blitz January 03 Late 2023"]
[White "Indjic, Aleksandar"]
[Black "Ballester Llagaria, Luis Eduardo"]
[WhiteFideId "911925"]
[BlackFideId "2297620"]
[WhiteElo "2618"]
[BlackElo "2298"]
[Result "1-0"]
[Round "10"]
[TimeControl "180+2"]
[Date "2023.01.03"]
[WhiteClock "0:01:10"]
[BlackClock "0:00:01"]

1. e4 {[%clk 0:03:00]}  c5 {[%clk 0:02:56]} 2. Nf3 {[%clk 0:03:01]}  e6 {[%clk 0:02:57]} 3. d4 {[%clk 0:03:00]}  cxd4 {[%clk 0:02:58]} 4. Nxd4 {[%clk 0:02:59]}  Nc6 {[%clk 0:02:58]} 5. Nc3 {[%clk 0:02:59]}  Qc7 {[%clk 0:02:59]} 6. a3 {[%clk 0:02:57]}  a6 {[%clk 0:02:58]} 7. Be3 {[%clk 0:02:57]}  b5 {[%clk 0:02:54]} 8. Nxc6 {[%clk 0:02:56]}  dxc6 {[%clk 0:02:52]} 9. f3 {[%clk 0:02:44]}  e5 {[%clk 0:02:51]} 10. Qd2 {[%clk 0:02:43]}  Be6 {[%clk 0:02:48]} 11. Qf2 {[%clk 0:02:43]}  Nf6 {[%clk 0:02:43]} 12. Bd3 {[%clk 0:02:41]}  Be7 {[%clk 0:02:29]} 13. a4 {[%clk 0:02:41]}  b4 {[%clk 0:02:25]} 14. Nb1 {[%clk 0:02:39]}  c5 {[%clk 0:02:25]} 15. b3 {[%clk 0:02:31]}  c4 {[%clk 0:02:24]} 16. bxc4 {[%clk 0:02:29]}  Bxc4 {[%clk 0:02:25]} 17. O-O {[%clk 0:02:25]}  O-O {[%clk 0:02:22]} 18. Nd2 {[%clk 0:02:15]}  Bxd3 {[%clk 0:02:17]} 19. cxd3 {[%clk 0:02:15]}  Rfd8 {[%clk 0:02:17]} 20. Rfc1 {[%clk 0:02:14]}  Qd7 {[%clk 0:02:12]} 21. Nc4 {[%clk 0:02:13]}  Qe6 {[%clk 0:01:50]} 22. Qe2 {[%clk 0:01:47]}  Nd7 {[%clk 0:01:48]} 23. a5 {[%clk 0:01:45]}  Nc5 {[%clk 0:01:15]} 24. Nb6 {[%clk 0:01:44]}  Nb3 {[%clk 0:01:15]} 25. Nxa8 {[%clk 0:01:42]}  Rxa8 {[%clk 0:01:05]} 26. Bb6 {[%clk 0:01:42]}  Nxa1 {[%clk 0:00:57]} 27. Rxa1 {[%clk 0:01:43]}  Rc8 {[%clk 0:00:55]} 28. d4 {[%clk 0:01:40]}  exd4 {[%clk 0:00:40]} 29. Qxa6 {[%clk 0:01:41]}  b3 {[%clk 0:00:40]} 30. Rb1 {[%clk 0:01:39]}  h5 {[%clk 0:00:28]} 31. Qb5 {[%clk 0:01:37]}  Bh4 {[%clk 0:00:15]} 32. a6 {[%clk 0:01:26]}  d3 {[%clk 0:00:06]} 33. Be3 {[%clk 0:01:24]}  Ra8 {[%clk 0:00:04]} 34. a7 {[%clk 0:01:21]}  Qd6 {[%clk 0:00:04]} 35. Qxb3 {[%clk 0:01:17]}  d2 {[%clk 0:00:00]} 36. Rd1 {[%clk 0:01:16]}  Be1 {[%clk 0:00:01]} 37. Qb7 {[%clk 0:01:10]} 1-0


[Site "https://www.chess.com"]

[Event "Titled Tuesday Blitz January 03 Late 2023"]
[White "Fishbein, Alexander"]
[Black "Sanal, Vahap"]
[WhiteFideId "2000377"]
[BlackFideId "6300545"]
[WhiteElo "2366"]
[BlackElo "2600"]
[Result "0-1"]
[Round "10"]
[TimeControl "180+2"]
[Date "2023.01.03"]
[WhiteClock "0:00:04"]
[BlackClock "0:01:30"]

1. e4 {[%clk 0:02:59]}  c5 {[%clk 0:03:00]} 2. Nf3 {[%clk 0:02:59]}  d6 {[%clk 0:03:00]} 3. d4 {[%clk 0:02:58]}  cxd4 {[%clk 0:03:01]} 4. Nxd4 {[%clk 0:02:58]}  Nf6 {[%clk 0:03:01]} 5. Nc3 {[%clk 0:02:58]}  a6 {[%clk 0:03:02]} 6. Be2 {[%clk 0:02:57]}  e5 {[%clk 0:02:58]} 7. Nb3 {[%clk 0:02:56]}  Be7 {[%clk 0:02:58]} 8. O-O {[%clk 0:02:56]}  O-O {[%clk 0:02:59]} 9. Re1 {[%clk 0:02:56]}  Be6 {[%clk 0:02:59]} 10. Bf1 {[%clk 0:02:56]}  Nbd7 {[%clk 0:02:58]} 11. Nd5 {[%clk 0:02:56]}  Bxd5 {[%clk 0:02:57]} 12. exd5 {[%clk 0:02:55]}  Qc7 {[%clk 0:02:55]} 13. c4 {[%clk 0:02:54]}  Rfc8 {[%clk 0:02:55]} 14. Bd2 {[%clk 0:02:46]}  a5 {[%clk 0:02:54]} 15. Be3 {[%clk 0:02:39]}  a4 {[%clk 0:02:53]} 16. Nd2 {[%clk 0:02:38]}  Nc5 {[%clk 0:02:53]} 17. Nb1 {[%clk 0:02:36]}  Qd7 {[%clk 0:02:45]} 18. Nc3 {[%clk 0:02:33]}  Ng4 {[%clk 0:02:45]} 19. Bxc5 {[%clk 0:02:15]}  Rxc5 {[%clk 0:02:44]} 20. Ne4 {[%clk 0:02:15]}  Rcc8 {[%clk 0:02:43]} 21. c5 {[%clk 0:02:15]}  Nf6 {[%clk 0:02:36]} 22. cxd6 {[%clk 0:02:04]}  Bd8 {[%clk 0:02:30]} 23. Ng3 {[%clk 0:01:33]}  Bb6 {[%clk 0:02:21]} 24. Qe2 {[%clk 0:01:19]}  g6 {[%clk 0:02:18]} 25. Qf3 {[%clk 0:01:07]}  Qxd6 {[%clk 0:02:14]} 26. Rad1 {[%clk 0:01:02]}  Rc2 {[%clk 0:02:13]} 27. Re2 {[%clk 0:01:00]}  Rac8 {[%clk 0:02:12]} 28. Rde1 {[%clk 0:00:52]}  Rxe2 {[%clk 0:02:11]} 29. Qxe2 {[%clk 0:00:46]}  h5 {[%clk 0:02:11]} 30. h3 {[%clk 0:00:42]}  Bd4 {[%clk 0:02:07]} 31. Ne4 {[%clk 0:00:29]}  Nxe4 {[%clk 0:02:06]} 32. Qxe4 {[%clk 0:00:28]}  Qb4 {[%clk 0:01:53]} 33. d6 {[%clk 0:00:22]}  Qxd6 {[%clk 0:01:51]} 34. Qxb7 {[%clk 0:00:21]}  Rc2 {[%clk 0:01:50]} 35. Re2 {[%clk 0:00:20]}  Rc1 {[%clk 0:01:48]} 36. Qa8+ {[%clk 0:00:15]}  Kg7 {[%clk 0:01:48]} 37. Qxa4 {[%clk 0:00:15]}  Qf6 {[%clk 0:01:32]} 38. Qb3 {[%clk 0:00:13]}  Qf5 {[%clk 0:01:31]} 39. g4 {[%clk 0:00:04]}  Qb1 {[%clk 0:01:30]} 40. Kg2 {[%clk 0:00:04]}  Rxf1 {[%clk 0:01:30]} 0-1


[Site "https://www.chess.com"]

[Event "Titled Tuesday Blitz January 03 Late 2023"]
[White "Rosen, Eric"]
[Black "Mardov, Dimitar"]
[WhiteFideId "2032562"]
[BlackFideId "30919495"]
[WhiteElo "2349"]
[BlackElo "2456"]
[Result "1-0"]
[Round "10"]
[TimeControl "180+2"]
[Date "2023.01.03"]
[WhiteClock "0:00:42"]
[BlackClock "0:00:42"]

1. d4 {[%clk 0:03:00]}  Nf6 {[%clk 0:02:59]} 2. Bf4 {[%clk 0:03:01]}  d5 {[%clk 0:02:58]} 3. e3 {[%clk 0:03:02]}  Bf5 {[%clk 0:02:59]} 4. Nf3 {[%clk 0:03:02]}  e6 {[%clk 0:02:59]} 5. Bd3 {[%clk 0:03:02]}  Bxd3 {[%clk 0:02:59]} 6. cxd3 {[%clk 0:02:59]}  Bd6 {[%clk 0:02:59]} 7. Bg3 {[%clk 0:02:59]}  O-O {[%clk 0:02:59]} 8. O-O {[%clk 0:03:00]}  Nbd7 {[%clk 0:02:58]} 9. Nc3 {[%clk 0:03:00]}  Bxg3 {[%clk 0:02:57]} 10. hxg3 {[%clk 0:03:00]}  c5 {[%clk 0:02:57]} 11. dxc5 {[%clk 0:02:55]}  Nxc5 {[%clk 0:02:58]} 12. Rc1 {[%clk 0:02:55]}  Rc8 {[%clk 0:02:58]} 13. Qe2 {[%clk 0:02:54]}  Qa5 {[%clk 0:02:57]} 14. a3 {[%clk 0:02:44]}  Nb3 {[%clk 0:02:56]} 15. Rb1 {[%clk 0:02:45]}  Rfd8 {[%clk 0:02:54]} 16. d4 {[%clk 0:02:34]}  Ne4 {[%clk 0:02:50]} 17. Nxe4 {[%clk 0:02:20]}  dxe4 {[%clk 0:02:51]} 18. Qd1 {[%clk 0:02:04]}  Qb6 {[%clk 0:02:09]} 19. Ng5 {[%clk 0:01:53]}  e5 {[%clk 0:01:30]} 20. d5 {[%clk 0:01:29]}  f5 {[%clk 0:01:08]} 21. Ne6 {[%clk 0:00:53]}  Rd6 {[%clk 0:01:07]} 22. Qh5 {[%clk 0:00:50]}  Nd2 {[%clk 0:00:55]} 23. Rbc1 {[%clk 0:00:44]}  Nc4 {[%clk 0:00:42]} 24. Rxc4 {[%clk 0:00:42]} 1-0


[Site "https://www.chess.com"]

[Event "Titled Tuesday Blitz January 03 Late 2023"]
[White "Poliakova, Varvara"]
[Black "Borges Feria, Yasel"]
[WhiteFideId "13518313"]
[BlackFideId "3504921"]
[WhiteElo "2010"]
[BlackElo "2439"]
[Result "1/2-1/2"]
[Round "10"]
[TimeControl "180+2"]
[Date "2023.01.03"]
[WhiteClock "0:00:21"]
[BlackClock "0:00:09"]

1. e4 {[%clk 0:02:50]}  c5 {[%clk 0:03:00]} 2. Nc3 {[%clk 0:02:48]}  a6 {[%clk 0:02:59]} 3. a4 {[%clk 0:02:40]}  b6 {[%clk 0:02:59]} 4. Nf3 {[%clk 0:02:38]}  Bb7 {[%clk 0:02:59]} 5. d4 {[%clk 0:02:39]}  cxd4 {[%clk 0:03:00]} 6. Nxd4 {[%clk 0:02:40]}  e6 {[%clk 0:03:00]} 7. Be3 {[%clk 0:02:37]}  d6 {[%clk 0:03:00]} 8. Be2 {[%clk 0:02:34]}  Nd7 {[%clk 0:03:01]} 9. O-O {[%clk 0:02:35]}  Qc7 {[%clk 0:03:01]} 10. f3 {[%clk 0:02:29]}  Ngf6 {[%clk 0:03:02]} 11. Nb3 {[%clk 0:02:26]}  Be7 {[%clk 0:03:01]} 12. Qe1 {[%clk 0:02:22]}  O-O {[%clk 0:03:01]} 13. g4 {[%clk 0:02:20]}  Ne5 {[%clk 0:02:44]} 14. Qg3 {[%clk 0:02:20]}  Nfd7 {[%clk 0:02:27]} 15. h4 {[%clk 0:02:16]}  Nc4 {[%clk 0:02:27]} 16. Bxc4 {[%clk 0:02:10]}  Qxc4 {[%clk 0:02:28]} 17. g5 {[%clk 0:02:07]}  Rac8 {[%clk 0:02:23]} 18. Rad1 {[%clk 0:02:06]}  Qc7 {[%clk 0:02:08]} 19. Nd4 {[%clk 0:02:07]}  Ne5 {[%clk 0:02:00]} 20. h5 {[%clk 0:02:02]}  Nc4 {[%clk 0:01:25]} 21. Bc1 {[%clk 0:02:01]}  Qc5 {[%clk 0:01:20]} 22. Kg2 {[%clk 0:01:46]}  Rfd8 {[%clk 0:01:05]} 23. Rh1 {[%clk 0:01:41]}  Ne5 {[%clk 0:00:52]} 24. f4 {[%clk 0:01:35]}  Nc6 {[%clk 0:00:48]} 25. Be3 {[%clk 0:01:35]}  Nxd4 {[%clk 0:00:42]} 26. Bxd4 {[%clk 0:01:36]}  Qf5 {[%clk 0:00:39]} 27. Bxb6 {[%clk 0:01:28]}  Rxc3 {[%clk 0:00:34]} 28. bxc3 {[%clk 0:01:29]}  Bxe4+ {[%clk 0:00:31]} 29. Kg1 {[%clk 0:01:27]}  Rc8 {[%clk 0:00:28]} 30. Rh4 {[%clk 0:01:24]}  Bxc2 {[%clk 0:00:24]} 31. Rd2 {[%clk 0:01:20]}  Bxa4 {[%clk 0:00:24]} 32. Qd3 {[%clk 0:01:18]}  Qb5 {[%clk 0:00:19]} 33. Qxb5 {[%clk 0:01:15]}  Bxb5 {[%clk 0:00:20]} 34. Rh3 {[%clk 0:01:12]}  Rc4 {[%clk 0:00:18]} 35. Rf2 {[%clk 0:01:08]}  Rc6 {[%clk 0:00:18]} 36. Bd4 {[%clk 0:01:06]}  Bc4 {[%clk 0:00:17]} 37. Re3 {[%clk 0:01:06]}  Bf8 {[%clk 0:00:16]} 38. Re1 {[%clk 0:01:03]}  Bb5 {[%clk 0:00:17]} 39. Rd1 {[%clk 0:01:03]}  Rc4 {[%clk 0:00:17]} 40. Ra1 {[%clk 0:01:03]}  e5 {[%clk 0:00:16]} 41. fxe5 {[%clk 0:00:56]}  dxe5 {[%clk 0:00:16]} 42. Bxe5 {[%clk 0:00:54]}  Bc5 {[%clk 0:00:16]} 43. Bd4 {[%clk 0:00:54]}  Rxd4 {[%clk 0:00:16]} 44. cxd4 {[%clk 0:00:54]}  Bxd4 {[%clk 0:00:17]} 45. Ra2 {[%clk 0:00:51]}  Bxf2+ {[%clk 0:00:17]} 46. Kxf2 {[%clk 0:00:51]}  f6 {[%clk 0:00:14]} 47. gxf6 {[%clk 0:00:48]}  gxf6 {[%clk 0:00:15]} 48. Kg3 {[%clk 0:00:48]}  Kg7 {[%clk 0:00:15]} 49. Kh4 {[%clk 0:00:43]}  Kf7 {[%clk 0:00:14]} 50. Kg4 {[%clk 0:00:38]}  Bd7+ {[%clk 0:00:12]} 51. Kf4 {[%clk 0:00:37]}  Bb5 {[%clk 0:00:13]} 52. Ra3 {[%clk 0:00:33]}  Kg7 {[%clk 0:00:13]} 53. Kg4 {[%clk 0:00:33]}  Kh6 {[%clk 0:00:13]} 54. Kh4 {[%clk 0:00:33]}  Be2 {[%clk 0:00:11]} 55. Ra5 {[%clk 0:00:32]}  Kg7 {[%clk 0:00:09]} 56. Kg3 {[%clk 0:00:30]}  Bb5 {[%clk 0:00:09]} 57. Kh4 {[%clk 0:00:29]}  Kh6 {[%clk 0:00:09]} 58. Ra1 {[%clk 0:00:28]}  Be2 {[%clk 0:00:09]} 59. Ra2 {[%clk 0:00:26]}  Bxh5 {[%clk 0:00:08]} 60. Rxa6 {[%clk 0:00:26]}  Kg6 {[%clk 0:00:08]} 61. Ra8 {[%clk 0:00:20]}  Bf3 {[%clk 0:00:07]} 62. Rg8+ {[%clk 0:00:21]}  Kf7 {[%clk 0:00:07]} 63. Rg3 {[%clk 0:00:21]}  Be4 {[%clk 0:00:07]} 64. Kg4 {[%clk 0:00:21]}  Bg6 {[%clk 0:00:08]} 65. Kf4 {[%clk 0:00:22]}  h5 {[%clk 0:00:07]} 66. Ra3 {[%clk 0:00:23]}  Kg7 {[%clk 0:00:05]} 67. Ra6 {[%clk 0:00:21]}  Bf7 {[%clk 0:00:05]} 68. Kf5 {[%clk 0:00:21]}  Bg6+ {[%clk 0:00:05]} 69. Ke6 {[%clk 0:00:21]}  f5 {[%clk 0:00:02]} 70. Ra7+ {[%clk 0:00:20]}  Kh6 {[%clk 0:00:02]} 71. Kf6 {[%clk 0:00:20]}  h4 {[%clk 0:00:03]} 72. Ra6 {[%clk 0:00:18]}  Kh5 {[%clk 0:00:02]} 73. Ke5 {[%clk 0:00:17]}  Be8 {[%clk 0:00:03]} 74. Kf4 {[%clk 0:00:17]}  Bb5 {[%clk 0:00:03]} 75. Ra8 {[%clk 0:00:15]}  Bd3 {[%clk 0:00:03]} 76. Rh8+ {[%clk 0:00:16]}  Kg6 {[%clk 0:00:03]} 77. Rxh4 {[%clk 0:00:16]}  Be4 {[%clk 0:00:04]} 78. Rh2 {[%clk 0:00:16]}  Kf6 {[%clk 0:00:05]} 79. Rb2 {[%clk 0:00:16]}  Ke6 {[%clk 0:00:05]} 80. Rb6+ {[%clk 0:00:16]}  Kd5 {[%clk 0:00:06]} 81. Rf6 {[%clk 0:00:17]}  Kd4 {[%clk 0:00:07]} 82. Rf8 {[%clk 0:00:17]}  Kd5 {[%clk 0:00:07]} 83. Rd8+ {[%clk 0:00:18]}  Ke6 {[%clk 0:00:07]} 84. Re8+ {[%clk 0:00:18]}  Kd5 {[%clk 0:00:08]} 85. Rh8 {[%clk 0:00:18]}  Ke6 {[%clk 0:00:08]} 86. Rh6+ {[%clk 0:00:19]}  Kd5 {[%clk 0:00:09]} 87. Rf6 {[%clk 0:00:19]}  Kd4 {[%clk 0:00:10]} 88. Rd6+ {[%clk 0:00:18]}  Kc5 {[%clk 0:00:10]} 89. Rd8 {[%clk 0:00:19]}  Kc6 {[%clk 0:00:10]} 90. Ke5 {[%clk 0:00:20]}  Kc7 {[%clk 0:00:11]} 91. Rd2 {[%clk 0:00:20]}  Kc6 {[%clk 0:00:11]} 92. Rd1 {[%clk 0:00:21]}  Kc5 {[%clk 0:00:12]} 93. Rc1+ {[%clk 0:00:22]}  Kb4 {[%clk 0:00:13]} 94. Kd4 {[%clk 0:00:22]}  Kb3 {[%clk 0:00:13]} 95. Rc8 {[%clk 0:00:22]}  Kb2 {[%clk 0:00:12]} 96. Ke3 {[%clk 0:00:21]}  Kb3 {[%clk 0:00:11]} 97. Kd4 {[%clk 0:00:22]}  Kb2 {[%clk 0:00:12]} 98. Rc7 {[%clk 0:00:22]}  Kb3 {[%clk 0:00:11]} 99. Rc5 {[%clk 0:00:22]}  Kb2 {[%clk 0:00:12]} 100. Rb5+ {[%clk 0:00:22]}  Kc1 {[%clk 0:00:10]} 101. Ke3 {[%clk 0:00:21]}  Kc2 {[%clk 0:00:11]} 102. Kd4 {[%clk 0:00:21]}  Kc1 {[%clk 0:00:08]} 103. Rb8 {[%clk 0:00:20]}  Kc2 {[%clk 0:00:08]} 104. Rb6 {[%clk 0:00:21]}  Kc1 {[%clk 0:00:08]} 105. Kc3 {[%clk 0:00:20]}  Kd1 {[%clk 0:00:08]} 106. Rd6+ {[%clk 0:00:21]}  Ke2 {[%clk 0:00:08]} 107. Kd4 {[%clk 0:00:21]}  Kf3 {[%clk 0:00:09]} 108. Rf6 {[%clk 0:00:21]}  Kf4 {[%clk 0:00:09]} 109. Rf8 {[%clk 0:00:21]}  Bb1 {[%clk 0:00:07]} 110. Rf7 {[%clk 0:00:20]}  Be4 {[%clk 0:00:08]} 111. Rf8 {[%clk 0:00:20]}  Bc2 {[%clk 0:00:08]} 112. Rf7 {[%clk 0:00:20]}  Be4 {[%clk 0:00:09]} 113. Rf8 {[%clk 0:00:21]} 1/2-1/2


[Site "https://www.chess.com"]

[Event "Titled Tuesday Blitz January 03 Late 2023"]
[White "Martins, Bruno Andre Leite"]
[Black "Kuzmicz, Krystian"]
[WhiteFideId "1942255"]
[BlackFideId "1119125"]
[WhiteElo "2348"]
[BlackElo "2466"]
[Result "1-0"]
[Round "10"]
[TimeControl "180+2"]
[Date "2023.01.03"]
[WhiteClock "0:01:38"]
[BlackClock "0:02:01"]

1. e4 {[%clk 0:02:59]}  c5 {[%clk 0:03:00]} 2. Nf3 {[%clk 0:02:59]}  e6 {[%clk 0:03:00]} 3. d4 {[%clk 0:02:59]}  cxd4 {[%clk 0:03:00]} 4. Nxd4 {[%clk 0:03:00]}  Nf6 {[%clk 0:03:01]} 5. Nc3 {[%clk 0:03:00]}  Nc6 {[%clk 0:03:01]} 6. Ndb5 {[%clk 0:02:59]}  Bc5 {[%clk 0:03:01]} 7. Bf4 {[%clk 0:02:58]}  O-O {[%clk 0:03:01]} 8. Bc7 {[%clk 0:02:58]}  Qe7 {[%clk 0:03:01]} 9. Bd6 {[%clk 0:02:59]}  Bxd6 {[%clk 0:03:02]} 10. Qxd6 {[%clk 0:03:00]}  Qd8 {[%clk 0:03:02]} 11. Nc7 {[%clk 0:02:17]}  Rb8 {[%clk 0:03:01]} 12. Be2 {[%clk 0:02:15]}  b5 {[%clk 0:03:01]} 13. N7xb5 {[%clk 0:02:12]}  a6 {[%clk 0:02:58]} 14. Nd4 {[%clk 0:02:12]}  Nxd4 {[%clk 0:02:56]} 15. Qxd4 {[%clk 0:02:13]}  Rxb2 {[%clk 0:02:54]} 16. O-O {[%clk 0:02:08]}  Rxc2 {[%clk 0:02:46]} 17. Bd3 {[%clk 0:02:08]}  Rb2 {[%clk 0:02:35]} 18. e5 {[%clk 0:02:09]}  Ne8 {[%clk 0:02:32]} 19. Ne4 {[%clk 0:02:05]}  Rb8 {[%clk 0:02:22]} 20. Nc5 {[%clk 0:02:01]}  d6 {[%clk 0:02:16]} 21. exd6 {[%clk 0:01:59]}  Qxd6 {[%clk 0:02:16]} 22. Qxd6 {[%clk 0:01:58]}  Nxd6 {[%clk 0:02:17]} 23. Nxa6 {[%clk 0:01:53]}  Bxa6 {[%clk 0:02:16]} 24. Bxa6 {[%clk 0:01:54]}  Ra8 {[%clk 0:02:16]} 25. Be2 {[%clk 0:01:50]}  Ra3 {[%clk 0:02:13]} 26. Rfd1 {[%clk 0:01:50]}  Ne4 {[%clk 0:02:09]} 27. Rd3 {[%clk 0:01:48]}  Rfa8 {[%clk 0:02:07]} 28. Rxa3 {[%clk 0:01:41]}  Rxa3 {[%clk 0:02:07]} 29. Bc4 {[%clk 0:01:40]}  Nd2 {[%clk 0:02:01]} 30. Rd1 {[%clk 0:01:38]} 1-0


[Site "https://www.chess.com"]